Cogmind - Beta 9.4 @@@ ROGUE MODE // 2020.01.30 @ 15:12:29 Player: Pimski Result: Destroyed by NK-0LA with NK-0LA's Tesla Doomcannon Performance ------------- Evolutions (1) 500 Regions Visited (6) 1200 Robots Destroyed (52) 260 Value Destroyed (983) 983 Prototype IDs (24) 480 Alien Tech Used (0) 0 Bonus (-319) -319 TOTAL SCORE: 3104 Bonus ------- Aligned with FarCom 300 Friendly Fire -619 Cogmind --------- Core Integrity 0/400 Matter 211/300 Energy 310/310 System Corruption 2% Temperature Cool (0) Movement Rolling (160) Ox6 Location -8/Mines Parts ------- > --- POWER (1) -------- Reinforced Fission Core > --- PROPULSION (2) --- Light Treads Compact Wheel > --- UTILITY (4) ------ Large Storage Unit High-capacity Storage Unit High-capacity Storage Unit > --- WEAPON (2) ------- Heavy Assault Rifle > --- INVENTORY (26) --- Light Ion Engine Light Ion Engine Light Treads Advanced Myomer Leg Medium Storage Unit High-capacity Storage Unit High-capacity Storage Unit High-capacity Storage Unit High-capacity Matter Pod (200) High-capacity Matter Pod (200) High-capacity Matter Pod (200) Gravity Neutralizing Apparatus Hacking Suite Chronowheel Firepult Light Assault Rifle Heavy Assault Rifle 8R-AWN's Boregun Grenade Launcher Rocket Launcher Field Lobotomy Kit Peak State ------------ > --- POWER ------------ Reinforced Fission Core > --- PROPULSION ------- Light Treads Light Treads > --- UTILITY ---------- High-capacity Storage Unit > --- WEAPON ----------- Heavy Assault Rifle 8R-AWN's Boregun > --- INVENTORY -------- Advanced Myomer Leg High-capacity Matter Pod High-capacity Matter Pod Gravity Neutralizing Apparatus Light Assault Rifle Heavy Assault Rifle Heavy Assault Rifle Grenade Launcher Rocket Launcher [Rating: 23] Favorites ----------- Power Light Ion Engine Engine Light Ion Engine Power Core Reinforced Fission Core Propulsion Light Treads Treads Light Treads Leg Aluminum Leg Wheel Compact Wheel Utility High-capacity Storage Unit Device Gravity Neutralizing Apparatus Storage High-capacity Storage Unit Protection Light Armor Plating Weapon Heavy Assault Rifle Energy Gun Medium Laser Ballistic Gun Heavy Assault Rifle Ballistic Cannon Light Cannon Launcher Rocket Launcher Build | -11 -10 -10 -9 -9 -9 -8 ------- Run | Scr Mat Min Mat Min Exi Min Slots Evolved 2 | . . . 2 . . . Power . | . . . . . . . Propulsion . | . . . . . . . Utility 2 | . . . 2 . . . Weapon . | . . . . . . . Parts Attached 45 | . 9 2 8 6 17 3 Power 5 | . 1 . 1 2 1 . Engine 4 | . 1 . 1 2 . . Core 1 | . . . . . 1 . Reactor . | . . . . . . . Propulsion 11 | . 3 1 2 1 3 1 Treads 9 | . 2 1 2 1 3 . Leg . | . . . . . . . Wheel 2 | . 1 . . . . 1 Hover . | . . . . . . . Flight . | . . . . . . . Utility 16 | . 3 . 3 2 8 . Device 1 | . . . . . 1 . Storage 5 | . 2 . . . 3 . Processor . | . . . . . . . Hackware . | . . . . . . . Protection 10 | . 1 . 3 2 4 . Artifact . | . . . . . . . Weapon 13 | . 2 1 2 1 5 2 Energy Gun . | . . . . . . . Energy Cannon . | . . . . . . . Ballistic Gun 10 | . 2 . 2 1 4 1 Ballistic Cannon 1 | . . 1 . . . . Launcher 2 | . . . . . 1 1 Special Weapon . | . . . . . . . Impact Weapon . | . . . . . . . Slashing Weapon . | . . . . . . . Piercing Weapon . | . . . . . . . Special Melee Weapon . | . . . . . . . Unidentified Prototypes 2 | . . . . . 2 . Parts Lost 19 | . . 2 2 4 10 1 Power 2 | . . 1 . . 1 . Propulsion 5 | . . . 1 1 3 . Utility 7 | . . . . 2 5 . Weapon 5 | . . 1 1 1 1 1 Highest Loss Streak 10 | . . 2 1 3 10 1 Average Slot Usage (%) 94 | . 94 95 95 99 94 78 Engine 9 | . 14 9 7 11 8 . Treads 23 | . 26 28 22 22 22 12 Storage 23 | . 21 28 22 22 23 33 Protection 12 | . 2 . 21 21 15 . Energy Gun 1 | . 9 . . . . . Ballistic Gun 20 | . 18 23 21 22 21 11 Naked Turns . | . . . . . . . Heaviest Build 108 | 11 72 72 81 81 108 104 Greatest Support 40 | 20 40 40 40 40 40 16 Greatest Overweight (x) 6 | . 4 1 2 2 2 6 Average Overweight (x) 1 | . . 1 1 1 1 6 Largest Inventory Capacity 28 | 6 20 20 20 20 28 26 Average Capacity 19 | 6 12 20 20 20 21 26 Most Carried 26 | 6 20 20 20 20 26 22 Average Carried 17 | 6 10 19 19 19 17 22 Final Capacity 26 | 6 20 20 20 20 26 26 Final Carried 22 | 6 20 19 20 20 22 22 Class Distribution -------------------- 79% | Hauler-Mutant 12% | Mutant 8% | Scavenger-Mutant Dominant Class ---------------- Hauler-Mutant | -10/Materials Hauler-Mutant | -10/Mines Hauler-Mutant | -9/Materials Hauler-Mutant | -9/Mines Hauler-Mutant | -9/Exiles Hauler-Mutant | -8/Mines Resources | -11 -10 -10 -9 -9 -9 -8 ----------- Run | Scr Mat Min Mat Min Exi Min Matter Collected 1655 | 200 185 159 436 207 468 . Remotely . | . . . . . . . Salvage Created 1652 | 77 337 200 603 289 135 11 Parts 89 | 1 17 11 31 22 4 3 Haulers Intercepted 3 | . 2 . 1 . . . Recyclers Shooed 1 | . 1 . . . . . Parts Field Recycled . | . . . . . . . Retrieved Matter . | . . . . . . . Parts Self-Destructed . | . . . . . . . Prevented . | . . . . . . . Kills | -11 -10 -10 -9 -9 -9 -8 ------- Run | Scr Mat Min Mat Min Exi Min Combat Hostiles Destroyed 38 | . 6 5 11 10 4 2 Melee 1 | . . . . 1 . . Guns 31 | . 6 5 10 9 1 . Cannons 1 | . . . 1 . . . AOE 5 | . . . . . 3 2 Classes Destroyed 10 | 1 4 1 2 2 . . Worker 1 | . . . . 1 . . Hauler 3 | . 2 . 1 . . . Recycler 3 | 1 1 . 1 . . . Operator 1 | . . . 1 . . . Watcher 2 | . 1 . 1 . . . Swarmer 12 | . 3 . 3 4 . 2 Grunt 15 | . 3 4 4 4 . . Brawler 1 | . . . . 1 . . Sentry 4 | . . . 4 . . . Assembled 8 | . . 1 . . 7 . Best Kill Streak 5 | 1 5 2 5 5 3 2 Combat Bots Only 5 | . 3 2 5 5 3 2 Max Kills in Single Turn 4 | 1 1 1 1 1 4 1 Gunslinging . | . . . . . . . Exploded 2 | . . . . . 2 1 Melee 1 | . . . . 1 . . Uniques/NPCs Destroyed 1 | . . . . 1 . . YI-UF0 (-9/Mines) 8R-AWN (-9/Exiles) Combat | -11 -10 -10 -9 -9 -9 -8 -------- Run | Scr Mat Min Mat Min Exi Min Damage Taken 3223 | . 262 379 353 702 1231 296 Core 521 | . 36 71 37 52 215 110 Absorbed by Shields . | . . . . . . . Core Remaining (%) 78 | 100 . 57 . . . . Volleys Fired 171 | 1 33 23 36 28 46 4 Largest 2 | 2 2 2 2 2 2 1 Hottest 90 | 90 70 55 58 46 46 33 Shots Fired 335 | 2 66 48 72 56 87 4 Gun 319 | 2 66 46 66 56 83 . Cannon 8 | . . 2 6 . . . Launcher 8 | . . . . . 4 4 Special . | . . . . . . . Kinetic 300 | . 41 48 72 56 83 . Thermal 26 | 1 25 . . . . . Explosive 8 | . . . . . 4 4 Electromagnetic 1 | 1 . . . . . . Robot Hit Streak 26 | 2 7 7 18 26 14 . Robot Miss Streak 4 | . 3 1 4 2 2 2 Penetration Max . | . . . . . . . Secondary Targets 3 | . . . 2 1 . . Max Gunslinging Chain 1 | . . . 1 1 . . Shots Hit Robots 248 | 2 42 32 56 45 71 . Core Hits 95 | 2 17 12 20 17 25 2 Critical Hits 5 | . 1 . 2 . 2 . Critical Kills 3 | . 1 . 2 . . . Critical Parts Destroyed 1 | . . . . . 1 . Melee Attacks . | . . . . . . . Impact . | . . . . . . . Slashing . | . . . . . . . Piercing . | . . . . . . . Sneak Attacks . | . . . . . . . Combat Hostiles . | . . . . . . . Follow-up Attacks . | . . . . . . . Damage Inflicted 4089 | 24 482 305 943 644 1428 263 Guns 3314 | 24 479 296 852 623 1040 . Cannons 58 | . . . 58 . . . Explosions 651 | . . . . . 388 263 Melee . | . . . . . . . Ramming 66 | . 3 9 33 21 . . Kinetic 3149 | . 280 296 910 623 1040 . Thermal 211 | 12 199 . . . . . Explosive 651 | . . . . . 388 263 Electromagnetic 12 | 12 . . . . . . Impact . | . . . . . . . Slashing . | . . . . . . . Piercing . | . . . . . . . Highest Corruption 12 | . 5 12 . . . 2 Average Corruption 6 | . 4 7 . . . 1 Corruption Purged . | . . . . . . . Effects 17 | . . 17 . . . . Message Errors 2 | . . 2 . . . . Matter Fused 6 | . . 6 . . . . Energy Discharges 3 | . . 3 . . . . Data Loss (major) 1 | . . 1 . . . . Misfires 2 | . . 2 . . . . Misdirections 1 | . . 1 . . . . Targeting Errors 2 | . . 2 . . . . Overload Shots . | . . . . . . . Overflow Damage 28 | . . . . . . 28 Projectiles . | . . . . . . . Explosions 28 | . . . . . . 28 Melee . | . . . . . . . Knockbacks . | . . . . . . . Impact . | . . . . . . . Kinetic . | . . . . . . . Secondary . | . . . . . . . Self-Inflicted Damage 84 | . . . . . 21 63 Shots 3 | . . . . . 1 2 Rammed 9 | . . 1 6 2 . . Targets Rammed 10 | . 1 1 6 2 . . Kicked . | . . . . . . . Crushed 1 | . 1 . . . . . Highest Temperature 144 | 30 144 18 10 26 36 . Average Temperature 39 | 18 68 9 4 10 9 . Received Heat Transfer 533 | . 99 183 126 105 20 . Siege Activations . | . . . . . . . Robots Corrupted . | . . . . . . . Combat Hostiles . | . . . . . . . Parts Fried . | . . . . . . . Impact Corruptions . | . . . . . . . Robots Melted . | . . . . . . . Combat Hostiles . | . . . . . . . Parts Melted 1 | . 1 . . . . . Heat Transferred 629 | 37 592 . . . . . Parts Sabotaged . | . . . . . . . Parts Stolen . | . . . . . . . Parts Stripped . | . . . . . . . Power Chain Reactions . | . . . . . . . Missiles Intercepted . | . . . . . . . Alert | -11 -10 -10 -9 -9 -9 -8 ------- Run | Scr Mat Min Mat Min Exi Min Peak Influence 248 | 5 194 116 248 245 . 74 Average Influence 93 | 5 47 68 109 185 . 69 Maximum Alert Level 1 | . . . 1 1 . . Low Security (%) 88 | 100 100 100 91 46 . 100 Level 1 11 | . . . 8 53 . . Level 2 . | . . . . . . . Level 3 . | . . . . . . . Level 4 . | . . . . . . . Level 5 . | . . . . . . . High Security . | . . . . . . . Max Security . | . . . . . . . Squads Dispatched 6 | . 3 . 3 . . . Investigation 2 | . . . 2 . . . Extermination . | . . . . . . . Reinforcement 4 | . 3 . 1 . . . Assault . | . . . . . . . Garrison . | . . . . . . . Intercept . | . . . . . . . Construction Impeded . | . . . . . . . Haulers Reinforced . | . . . . . . . Stealth | -11 -10 -10 -9 -9 -9 -8 --------- Run | Scr Mat Min Mat Min Exi Min Distress Signals 3 | . 1 . 2 . . . Communications Jammed . | . . . . . . . Distress Signals . | . . . . . . . Times Spotted 58 | . 15 5 18 13 4 3 Peak Tracking Total 6 | . 4 3 6 5 5 4 Tactical Retreats 5 | . . 1 2 1 . 1 Traps | -11 -10 -10 -9 -9 -9 -8 ------- Run | Scr Mat Min Mat Min Exi Min Traps Triggered 4 | . 3 . 1 . . . Indirectly . | . . . . . . . Trap Hack Attempts . | . . . . . . . Triggered . | . . . . . . . Disarmed . | . . . . . . . Reprogrammed . | . . . . . . . Reused . | . . . . . . . Traps Extracted . | . . . . . . . Installed . | . . . . . . . Triggered . | . . . . . . . Machines | -11 -10 -10 -9 -9 -9 -8 ---------- Run | Scr Mat Min Mat Min Exi Min Machines Disabled 5 | . 1 . . . 4 . Max in Single Turn 2 | . 1 . . . 2 . Machines Sabotaged . | . . . . . . . Garrisons Compromised . | . . . . . . . Overloaded Fab Kills . | . . . . . . . Fab Network Shutdowns . | . . . . . . . Hacking | -11 -10 -10 -9 -9 -9 -8 --------- Run | Scr Mat Min Mat Min Exi Min Machines Accessed 7 | . 2 1 2 . 2 . Terminals 3 | . 1 1 1 . . . Fabricators . | . . . . . . . Repair Stations 1 | . . . 1 . . . Recycling Units 1 | . 1 . . . . . Scanalyzers . | . . . . . . . Garrison Access . | . . . . . . . Total Hacks 21 | . 3 4 12 . 2 . Successful 14 | . 3 2 7 . 2 . Failed 7 | . . 2 5 . . . Catastrophic 1 | . . . 1 . . . Database Lockouts . | . . . . . . . Manual 10 | . 1 4 4 . 1 . Terminals 12 | . 1 4 7 . . . Fabricators . | . . . . . . . Repair Stations 5 | . . . 5 . . . Recycling Units 2 | . 2 . . . . . Scanalyzers . | . . . . . . . Garrison Access . | . . . . . . . Terminal Hacks 8 | . 1 2 3 . 2 . Record 1 | . . . . . 1 . Robot Analysis 2 | . . 2 . . . . Branch Access Points 2 | . 1 . 1 . . . Locate Traps 1 | . . . 1 . . . Hauler Manifests 1 | . . . 1 . . . EX-Prototype ID Bank 1 | . . . . . 1 . Fabricator Hacks . | . . . . . . . Repair Station Hacks 3 | . . . 3 . . . Scan Component 2 | . . . 2 . . . Repair 1 | . . . 1 . . . Recycling Unit Hacks 2 | . 2 . . . . . Retrieve Components 2 | . 2 . . . . . Scanalyzer . | . . . . . . . Garrison Access Hacks . | . . . . . . . Unauthorized Hacks 3 | . . . 3 . . . Terminals 1 | . . . 1 . . . Disrupt 1 | . . . 1 . . . Fabricators . | . . . . . . . Repair Stations . | . . . . . . . Recycling Units . | . . . . . . . Scanalyzers . | . . . . . . . Garrison Access . | . . . . . . . Data Cores Recovered . | . . . . . . . Used . | . . . . . . . Hacking Detections 4 | . 1 1 2 . . . Full Trace Events 1 | . . . 1 . . . Feedback Events . | . . . . . . . Feedback Blocked . | . . . . . . . Robot Schematics Acquired . | . . . . . . . Robots Built . | . . . . . . . Matter . | . . . . . . . Time . | . . . . . . . Total Robot Build Rating . | . . . . . . . Part Schematics Acquired . | . . . . . . . Parts Built . | . . . . . . . Matter . | . . . . . . . Time . | . . . . . . . Total Part Build Rating . | . . . . . . . Parts Repaired 1 | . . . 1 . . . Time 26 | . . . 26 . . . Parts Recycled . | . . . . . . . Recycled Matter . | . . . . . . . Retrieved Matter . | . . . . . . . Retrieved Components 10 | . 10 . . . . . Parts Scanalyzed . | . . . . . . . Part Schematics Acquired . | . . . . . . . Parts Damaged . | . . . . . . . Bothacking | -11 -10 -10 -9 -9 -9 -8 ------------ Run | Scr Mat Min Mat Min Exi Min Used RIF Installer . | . . . . . . . Robots Hacked . | . . . . . . . Non-combat . | . . . . . . . Combat . | . . . . . . . Robot Hacks Applied . | . . . . . . . Relay Couplers Released . | . . . . . . . Robots Rewired . | . . . . . . . Allies Hacked . | . . . . . . . Hacks Repelled . | . . . . . . . Allies | -11 -10 -10 -9 -9 -9 -8 -------- Run | Scr Mat Min Mat Min Exi Min Total Allies . | . . . . . . . Largest Group . | . . . . . . . Highest-Rated Group . | . . . . . . . Highest-Rated Ally . | . . . . . . . Total Orders . | . . . . . . . Ally Attacks . | . . . . . . . Total Damage . | . . . . . . . Kills . | . . . . . . . Allies Corrupted . | . . . . . . . Allies Melted . | . . . . . . . Intel | -11 -10 -10 -9 -9 -9 -8 ------- Run | Scr Mat Min Mat Min Exi Min Robot Analysis Total 2 | . . 2 . . . . Derelict Logs Recovered 1 | . . 1 . . . . Drone Launches . | . . . . . . . Drone Recoveries . | . . . . . . . Exploration | -11 -10 -10 -9 -9 -9 -8 ------------- Run | Scr Mat Min Mat Min Exi Min Turns Passed 3610 | 15 695 472 713 380 1231 104 Spaces Moved 1556 | 11 321 213 258 152 544 57 Core . | . . . . . . . Treads 1451 | . 284 213 258 152 544 . Legs 25 | 11 14 . . . . . Wheels 80 | . 23 . . . . 57 Hover . | . . . . . . . Flight . | . . . . . . . Fastest Speed 120 | 120 120 180 180 180 160 160 Average Speed 182 | 120 166 180 194 183 191 160 Slowest Speed 200 | 120 180 180 200 200 200 160 Overloaded Moves . | . . . . . . . Propulsion Burnouts . | . . . . . . . Robots Hopped . | . . . . . . . Cave-ins Triggered . | . . . . . . . Exploration Rate (%) 35 | 2 54 39 23 45 67 18 Regions Visited 6 Branch Regions 4 Pre-discovered Areas 1 | . . . . . 1 . Known Exits Taken 2 | . 1 . 1 . . . Unknown Exits Taken 4 | 1 . 1 . 1 1 . Scrap Searched . | . . . . . . . Spaces Dug 11 | . . . . . . 11 Terrain Destroyed 52 | . . . . . 15 37 Melee . | . . . . . . . Projectile . | . . . . . . . AOE 52 | . . . . . 15 37 Actions | -11 -10 -10 -9 -9 -9 -8 --------- Run | Scr Mat Min Mat Min Exi Min Total 2002 | 11 420 259 395 197 656 64 Wait 121 | . 23 21 70 4 3 . Move 1550 | 10 320 212 257 151 543 57 Hop . | . . . . . . . Pick Up 63 | . 22 . 11 4 26 . Fast Attach 9 | . 3 . 2 . 4 . Attach 19 | . 2 1 4 4 8 . Detach 2 | . 1 . . . 1 . Swap 17 | . 4 1 2 2 5 3 Drop 40 | . 11 . 7 2 20 . Fire 171 | 1 33 23 36 28 46 4 Melee . | . . . . . . . Ram . | . . . . . . . Kick . | . . . . . . . Crush 10 | . 1 1 6 2 . . Escape Stasis . | . . . . . . . Rewire . | . . . . . . . Trap . | . . . . . . . Miscellaneous . | . . . . . . . Route ------- -11/Scrapyard -10/Materials (discovered 2 exits: *Mat / *Min) -10/Mines -9/Materials (discovered 4 exits: Mat / *Min x2 / Sto) -9/Mines (discovered 3 exits: *Mat x2 / *Exi) -9/Exiles -8/Mines History --------- Turn | Location | Event 4 | -11/Scrapyard | Discovered new exit (range 3) 16 | -11/Scrapyard | Entered Materials 312 | -10/Materials | Build established: Mutant 619 | -10/Materials | Discovered new exit (range 15) 637 | -10/Materials | Build established: Hauler-Mutant 679 | -10/Materials | Identified exit to Mines 711 | -10/Materials | Entered Mines 880 | -10/Mines | Assembled infested the area 1036 | -10/Mines | System corruption reached 10% 1158 | -10/Mines | Discovered new exit (range 15) 1162 | -10/Mines | Learned location of 1 exit from Materials 1183 | -10/Mines | Entered Materials 1183 | -9/Materials | Evolved 2 slots: Utility x2 1184 | -9/Materials | Identified exit to Materials 1771 | -9/Materials | Repaired Lgt. Armor Plating 1864 | -9/Materials | Identified exit to Mines 1864 | -9/Materials | Identified exit to Storage 1896 | -9/Materials | Entered Mines 1936 | -9/Mines | Discovered exit to Materials (range 12) 1960 | -9/Mines | Destroyed YI-UF0 2032 | -9/Mines | Discovered exit to Materials (range 8) 2105 | -9/Mines | Lost 3 parts (1n1u1w) 2269 | -9/Mines | Deemed a non-threat by the Exiles lab entrance 2269 | -9/Mines | Discovered new exit (range 5) 2276 | -9/Mines | Entered Exiles 2321 | -9/Exiles | Met 8R-AWN 2350 | -9/Exiles | Met EX-HEX 2432 | -9/Exiles | Met EX-DEC 2461 | -9/Exiles | Learned location of Zion (-6) 2740 | -9/Exiles | Met EX-BIN 2764 | -9/Exiles | Aligned with FarCom system 2766 | -9/Exiles | Given EX-Vault access code 2812 | -9/Exiles | Opened EX-Vault 2822 | -9/Exiles | Found Chronowheel 2827 | -9/Exiles | Found Field Lobotomy Kit 2830 | -9/Exiles | Found Firepult 2873 | -9/Exiles | Warned to stay clear of 0b10 Research branches 3020 | -9/Exiles | Discovered new exit (range 15) 3233 | -9/Exiles | Attacked by the Exiles 3311 | -9/Exiles | Core integrity fell below 50% 3371 | -9/Exiles | Destroyed 8R-AWN 3389 | -9/Exiles | Found Prototype Ballistic Gun 3392 | -9/Exiles | Lost 10 parts (1p3n5u1w) 3393 | -9/Exiles | Identified 8R-AWN's Boregun 3507 | -9/Exiles | Stole three prototypes: Chronowheel, Firepult, Field Lobotomy Kit 3507 | -9/Exiles | Entered Mines 3606 | -8/Mines | Core integrity fell below 20% 3611 | -8/Mines | Destroyed by NK-0LA with NK-0LA's Tesla Doomcannon Last Messages --------------- 03473_ Acquired Lgt. Ion Engine. 03476_ Acquired Chronowheel. 03479_ Acquired Hacking Suite. 03482_ Acquired Med. Storage Unit. 03485_ Acquired Com. Wheel. 03488_ Acquired Lgt. Ion Engine. 03491_ Acquired Field Lobotomy Kit. 03494_ Acquired Hcp. Storage Unit. A strange signal echoes through the mines. LOCATION=UNKNOWN GOAL=ESCAPE 03511_ Destroyed Lgt. Ion Engine. 03511_ S-10 Pest destroyed. 03511_ Hvy. Assault Rifle destroyed. 03511_ Destroyed Hvy. Assault Rifle. 03515_ S-10 Pest destroyed. 03515_ Destroyed Lgt. Assault Rifle. 03515_ Destroyed Lgt. Ion Engine. 03522_ The unstable cave ceiling collapses. 03578_ T-07 Excavator is excavating. Map ----- +----------------------------------------------------+ | ????????????????????????????????????????????? | | ????????????????????????????????????????????? | | ????????????????????????????????????????????? | | ????????????????????????????????????????????? | | ????????????????????????????????????????????? | | ????????????????????????????????????????????? | | ????????????????????????????????????????????? | | ????????????????????????????????????????????? | | ????????????????????????????????????????????? | | ????????????????????????????????????????????? | | ????????????????????????????????????????????? | | ????????????????????????????????????????????? | | ????????????????????????????????????????????? | | ????????????????????????????????????????????? | | ????????????????????????????????????????????? | | ????????????????????????????????????????????? | | ????????????????????????????????????????????? | | ????????????????????????????????????????????? | | ????????????????????????????????????????????? | | #???????????????????????????????????????????? | | ##?????????????????????????????????????????? | | #????????????????????????????????????????? | | ####????????????????????????????????????? | | ######################???????????????? | | #???????????????? | | ?# @ #???????????????? | | #?## ################### #??###??????????? | | ##?## #?????????????????# ### #??????????? | | #### #?????????????????# #??????????? | | ## #?????????????????##### ##??????????? | | ##??????????????????????##???????????? | | ##????????????????????????????????????? | | #####?????????????????????????????????????? | | ##?????????????????????????????????????????? | | ##??????????????????????????????????????????? | | #???????????????????????????????????????????? | | #???????????????????????????????????????????? | | #???????????????????????????????????????????? | | #???????????????????????????????????????????? | | #???????????????????????????????????????????? | | ????????????????????????????????????????????? | | ????????????????????????????????????????????? | | ????????????????????????????????????????????? | | ????????????????????????????????????????????? | | ????????????????????????????????????????????? | | ????????????????????????????????????????????? | | ????????????????????????????????????????????? | | ????????????????????????????????????????????? | | ????????????????????????????????????????????? | | ????????????????????????????????????????????? | +----------------------------------------------------+ Best States ------------- Heat Dissipation 28 Energy Generation 19 Energy Capacity 310 Matter Stores 300 Matter Capacity 300 Sight Range 16 Terrain Scan Density 10 Armor Coverage 525 Evasion (%) 40 Recoil Reduction 2 Item Schematics ----------------- None Robot Schematics ------------------ None Fabricated ------------ Nothing Alien Tech Used ----------------- None Achievements -------------- None Challenges ------------ None Game ------ Seed EtherialUtilityRifle Manual? 0 Play Time 00:23:06 Cumulative 654.8 hours Start 2020.01.30 @ 14:48:28 End 2020.01.30 @ 15:12:29 Sessions 1 Manual Loads 0 Difficulty Rogue Special Mode None Game No. 423 Rogue 423 Adventurer 0 Explorer 0 Win Type - Total 104 Types 70/6/8/10/5/1/4 Lore% 97 Gallery% 95 Achievement% 80 Wizard Run 0 Options --------- ASCII 0 Keyboard 0 Movement Numpad Keybinds 0 Fullscreen 2 Font 18/SmallcapsGlow Map View 76x50 Tactical HUD 1 Map Filters NONE Filters NONE Steam 1 RUN: 39b5ffd5-0994-4dd9-b717-e46cee67c7c8